fUSD/lending_fUSD_20240324
["ID","MTS","AMOUNT","RATE_DAILY","PERIOD"]
[320289013,1711242638227,-3718.075,0.000191,2]
[320289014,1711242638237,-102494.78132786,0.000191,4]
[320289016,1711242638246,-478.0,0.000191,2]
[320289017,1711242638256,-156.0,0.0001915,2]
[320289018,1711242638267,-500.0,0.00019178,2]
[320289019,1711242638276,-500.0,0.00019178,2]
[320289020,1711242638285,-500.0,0.00019178,2]
[320289021,1711242638294,-500.0,0.00019178,2]
[320289022,1711242638303,-500.0,0.00019178,2]
[320289023,1711242638312,-500.0,0.00019178,2]
[320289024,1711242638323,-500.0,0.00019178,2]
[320289025,1711242638332,-628.38,0.00019178,2]
[320289026,1711242638341,-169.77270147,0.00019178,2]
[320289027,1711242638351,-500.0,0.00019178,2]
[320289028,1711242638360,-500.0,0.00019178,2]
[320289029,1711242638370,-548.14,0.00019178,2]
[320289030,1711242638380,-199.12145224,0.00019178,2]
[320289031,1711242638392,-300.87854776,0.00019178,2]
[320289032,1711242638401,-500.0,0.00019178,2]
[320289033,1711242638410,-500.0,0.00019178,2]
[320289034,1711242638420,-500.0,0.00019178,2]
[320289035,1711242638429,-500.0,0.00019178,2]
[320289036,1711242638438,-500.0,0.00019178,2]
[320289037,1711242638447,-500.0,0.00019178,2]
[320289038,1711242638456,-500.0,0.00019178,2]
[320289039,1711242638466,-500.0,0.00019178,2]
[320289040,1711242638475,-500.0,0.00019178,2]
[320289041,1711242638484,-145.1901013,0.00019178,2]
[320289046,1711242639871,-820.0,0.00018,2]
[320289047,1711242639881,-354.8098987,0.00019178,2]
[320289048,1711242639890,-633.06,0.00019178,2]
[320289049,1711242639899,-500.0,0.00019178,2]
[320289050,1711242639908,-500.0,0.00019178,2]
[320289051,1711242639918,-500.0,0.00019178,2]
[320289052,1711242639927,-500.0,0.00019178,2]
[320289053,1711242639938,-500.0,0.00019178,2]
[320289054,1711242639947,-500.0,0.00019178,2]
[320289055,1711242639957,-500.0,0.00019178,2]
[320289056,1711242639967,-500.0,0.00019178,2]
[320289057,1711242639976,-500.0,0.00019178,2]
[320289058,1711242639986,-500.0,0.00019178,2]
[320289059,1711242639995,-500.0,0.00019178,2]
[320289060,1711242640005,-500.0,0.00019178,2]
[320289061,1711242640014,-528.18531247,0.00019178,2]
[320289062,1711242640023,-500.0,0.00019178,2]
[320289063,1711242640035,-500.0,0.00019178,2]
[320289064,1711242640044,-500.0,0.00019178,2]
[320289065,1711242640053,-500.0,0.00019178,2]
[320289066,1711242640062,-500.0,0.00019178,2]
[320289067,1711242640071,-500.0,0.00019178,2]
[320289068,1711242640080,-260.64139408,0.00019178,2]
[320289069,1711242640089,-548.35,0.00019178,2]
[320289070,1711242640099,-500.0,0.00019178,2]
[320289071,1711242640108,-508.92376147,0.00019178,2]
[320289072,1711242640117,-500.0,0.00019178,2]
[320289073,1711242640126,-611.66836777,0.00019178,2]
[320289074,1711242640134,-164.2612634,0.00019178,2]
[320289075,1711242640143,-564.21,0.00019178,2]
[320289076,1711242640154,-500.0,0.00019178,2]
[320289077,1711242640163,-500.0,0.00019178,2]
[320289078,1711242640173,-500.0,0.00019178,2]
[320289079,1711242640182,-285.29510274,0.00019178,2]
[320289080,1711242640191,-500.0,0.00019178,2]
[320289081,1711242640200,-500.0,0.00019178,2]
[320289082,1711242640209,-500.0,0.00019178,2]
[320289083,1711242640219,-500.0,0.00019178,2]
[320289084,1711242640229,-500.0,0.00019178,2]
[320289085,1711242640240,-500.0,0.00019178,2]
[320289086,1711242640249,-500.0,0.00019178,2]
[320289087,1711242640258,-500.0,0.00019178,2]
[320289088,1711242640267,-500.0,0.00019178,2]
[320289089,1711242640277,-500.0,0.00019178,2]
[320289090,1711242640285,-500.0,0.00019178,2]
[320289091,1711242640294,-500.0,0.00019178,2]
[320289092,1711242640303,-500.0,0.00019178,2]
[320289093,1711242640312,-500.0,0.00019178,2]
[320289094,1711242640321,-500.0,0.00019178,2]
[320289095,1711242640330,-500.0,0.00019178,2]
[320289096,1711242640339,-500.0,0.00019178,2]
[320289097,1711242640349,-500.0,0.00019178,2]
[320289098,1711242640358,-500.0,0.00019178,2]
[320289099,1711242640367,-500.0,0.00019178,2]
[320289100,1711242640377,-500.0,0.00019178,2]
[320289101,1711242640386,-500.0,0.00019178,2]
[320289102,1711242640395,-500.0,0.00019178,2]
[320289103,1711242640404,-500.0,0.00019178,2]
[320289104,1711242640413,-500.0,0.00019178,2]
[320289105,1711242640422,-514.2,0.00019178,2]
[320289106,1711242640431,-500.0,0.00019178,2]
[320289107,1711242640441,-500.0,0.00019178,2]
[320289108,1711242640450,-500.0,0.00019178,2]
[320289109,1711242640459,-500.0,0.00019178,2]
[320289110,1711242640468,-500.0,0.00019178,2]
[320289111,1711242640477,-500.0,0.00019178,2]
[320289112,1711242640487,-272.81399248,0.00019178,2]
[320289113,1711242640506,-227.18600752,0.00019178,2]
[320289114,1711242640515,-67.26272138,0.00019178,2]
[320289115,1711242640551,-432.73727862,0.00019178,2]
[320289116,1711242640560,-500.0,0.00019178,2]
[320289117,1711242640569,-206.65507899,0.00019178,2]
[320289118,1711242640578,-500.0,0.00019178,2]
[320289119,1711242640587,-100.00005401,0.00019178,2]
[320289133,1711242642823,-399.99994599,0.00019178,2]
[320289134,1711242642832,-246.60753527,0.00019178,2]
[320289135,1711242642885,-253.39246473,0.00019178,2]
[320289136,1711242642894,-530.81,0.00019178,2]
[320289137,1711242642904,-500.0,0.00019178,2]
[320289138,1711242642913,-500.0,0.00019178,2]
[320289139,1711242642922,-500.0,0.00019178,2]
[320289140,1711242642931,-500.0,0.00019178,2]
[320289141,1711242642941,-352.43225793,0.00019178,2]
[320289142,1711242643159,-643.73756519,0.00019177,2]
[320289143,1711242643169,-147.56774207,0.00019178,2]
[320289144,1711242643179,-500.0,0.00019178,2]
[320289145,1711242643188,-252.27362911,0.00019178,2]
[320289146,1711242643198,-500.0,0.00019178,2]
[320289147,1711242643207,-500.0,0.00019178,2]
[320289148,1711242643217,-500.0,0.00019178,2]
[320289149,1711242643226,-500.0,0.00019178,2]
[320289150,1711242643236,-500.0,0.00019178,2]
[320289151,1711242643247,-500.0,0.00019178,2]
[320289152,1711242643256,-248.0560951,0.00019178,2]
[320289153,1711242643295,-251.9439049,0.00019178,2]
[320289154,1711242643307,-500.0,0.00019178,2]
[320289155,1711242643319,-500.0,0.00019178,2]
[320289156,1711242643331,-500.0,0.00019178,2]
[320289157,1711242643343,-500.0,0.00019178,2]
[320289158,1711242643356,-500.0,0.00019178,2]
[320289159,1711242643367,-500.0,0.00019178,2]
[320289160,1711242643377,-500.0,0.00019178,2]
[320289161,1711242643386,-278.01609511,0.00019178,2]
[320289164,1711243651148,-643.73756519,0.00015741,2]
[320289165,1711243651175,-267.8,0.00015742,2]
[320289166,1711243651196,-150.0,0.00015749,2]
[320289167,1711243651218,-467.306103,0.00016665,2]
[320289168,1711243651243,-150.0,0.00016749,2]
[320289169,1711243651266,-157.0,0.00016987,2]
[320289170,1711243651286,-205.0,0.00016987,2]
[320289171,1711243651305,-152.0,0.00016987,2]
[320289172,1711243651329,-1121.55,0.00017309,2]
[320289173,1711243651352,-816.89,0.00017345,2]
[320289174,1711243651373,-2751.0,0.0001737,2]
[320289175,1711243651393,-250.0,0.00017389,2]
[320289176,1711243651412,-200.0,0.00017422,2]
[320289177,1711243651435,-84.67139498,0.00017425,2]
[320289190,1711243831909,-643.73756519,0.00015948,2]
[320289191,1711243831919,-104.70646254,0.00015949,2]
[320289192,1711243831943,-166.59353746,0.00015949,2]
[320289193,1711243831954,-481.9730404,0.00017353,2]
[320289194,1711243831977,-1406.3230849,0.00017353,2]
[320289195,1711243832090,-3944.2699747,0.00017353,2]
[320289196,1711243832099,-222.51076452,0.00017363,2]
[320289197,1711243832108,-165.53493855,0.00017363,2]
[320289198,1711243832118,-275.32860502,0.00017425,2]
[320289199,1711243832128,-1550.53479211,0.00017425,2]
[320289200,1711243832356,-1023.41222923,0.00017425,2]
[320289201,1711243832366,-155.51972135,0.00017452,2]
[320289202,1711243832376,-140.39192249,0.00017452,2]
[320289204,1711243832401,-2992.94248951,0.00017452,2]
[320289205,1711243832411,-11758.62203587,0.00017453,2]
[320289206,1711243832433,-1640.61887293,0.00017453,2]
[320289207,1711243832445,-6127.228,0.00017453,2]
[320289208,1711243832458,-3386.09715096,0.00017453,2]
[320289209,1711243832482,-987.43394024,0.00017453,2]
[320289210,1711243832492,-2500.0,0.000175,2]
[320289212,1711243832502,-157.0,0.00017535,2]
[320289214,1711243832512,-205.0,0.00017535,2]
[320289216,1711243832521,-152.0,0.00017535,2]
[320289218,1711243832530,-150.99,0.00017558,2]
[320289220,1711243832548,-2751.0,0.00017585,2]
[320289221,1711243832562,-656.93,0.00017654,2]
[320289222,1711243832572,-500.0,0.00017721,2]
[320289224,1711243832582,-153.2790134,0.00017721,2]
[320289228,1711243837881,-96.7209866,0.00017721,2]
[320289231,1711243837892,-2924.8992723,0.00017728,2]
[320289233,1711243838002,-15052.93412273,0.00017728,2]
[320289234,1711243838068,-531.79482725,0.00017728,2]
[320289235,1711243838438,-349.66483089,0.00017728,2]
[320289236,1711243838450,-1140.69694683,0.00017728,2]
[320289237,1711243838459,-250.0,0.00017738,2]
[320289238,1711243838469,-150.0,0.00017749,2]
[320289239,1711243838479,-499.99,0.0001785,2]
[320289241,1711243838490,-1419.6,0.0001785,2]
[320289242,1711243838498,-1500.0,0.00018,2]
[320289243,1711243838508,-157.0,0.00018082,2]
[320289244,1711243838518,-271.3,0.00018213,2]
[320289245,1711243838528,-183.49,0.00018443,2]
[320289246,1711243838538,-1500.0,0.000185,2]
[320289247,1711243838548,-157.0,0.0001863,2]
[320289248,1711243838558,-150.0,0.00018749,2]
[320289249,1711243838568,-1141.54169239,0.00018856,2]
[320289250,1711243838577,-1141.54169239,0.00018973,2]
[320289251,1711243838588,-160.92554567,0.00018986,2]
[320289252,1711243838598,-454.764248,0.00019,2]
[320289254,1711243840224,-381.63785674,0.00019,2]
[320289255,1711243840236,-352.69193966,0.00019,2]
[320289256,1711243840249,-310.9059556,0.00019,2]
[320289257,1711243840258,-26.1397153,0.000191,2]
[320289258,1711243840270,-451.8602847,0.000191,2]
[320289259,1711243840279,-196.46841066,0.00019177,2]
[320289264,1711243843121,-509.07146196,0.000179,2]
[320289265,1711243843133,-537.24,0.00018887,2]
[320289266,1711243843145,-870.43564325,0.00019177,2]
[320289267,1711243843278,-4137.47505424,0.00019177,2]
[320289268,1711243843291,-205.51417289,0.00019177,2]
[320289269,1711243843303,-500.0,0.00019178,2]
[320289270,1711243843314,-437.03844966,0.00019178,2]
[320289271,1711243843329,-62.96155034,0.00019178,2]
[320289272,1711243843342,-500.0,0.00019178,2]
[320289273,1711243843355,-255.98,0.00019178,2]
[320289274,1711243843366,-169.77270147,0.00019178,2]
[320289275,1711243843378,-500.0,0.00019178,2]
[320289276,1711243843389,-500.0,0.00019178,2]
[320289277,1711243843401,-500.0,0.00019178,2]
[320289278,1711243843414,-500.0,0.00019178,2]
[320289279,1711243843426,-500.0,0.00019178,2]
[320289280,1711243843437,-500.0,0.00019178,2]
[320289281,1711243843448,-500.0,0.00019178,2]
[320289282,1711243843459,-500.0,0.00019178,2]
[320289283,1711243843470,-500.0,0.00019178,2]
[320289284,1711243843480,-471.52056437,0.00019178,2]
[320289285,1711243843496,-28.47943563,0.00019178,2]
[320289286,1711243843507,-500.0,0.00019178,2]
[320289287,1711243843518,-500.0,0.00019178,2]
[320289288,1711243843528,-500.0,0.00019178,2]
[320289289,1711243843540,-500.0,0.00019178,2]
[320289290,1711243843553,-500.0,0.00019178,2]
[320289291,1711243843564,-437.0956341,0.00019178,2]
[320289295,1711243846759,-160.92554567,0.00018986,2]
[320289296,1711243846770,-62.9043659,0.00019178,2]
[320289297,1711243846781,-26.8579173,0.00019178,2]
[320289298,1711243847086,-473.1420827,0.00019178,2]
[320289299,1711243847097,-500.0,0.00019178,2]
[320289300,1711243847108,-558.25,0.00019178,2]
[320289301,1711243847119,-525.74,0.00019178,2]
[320289302,1711243847130,-500.0,0.00019178,2]
[320289303,1711243847141,-500.0,0.00019178,2]
[320289304,1711243847152,-500.0,0.00019178,2]
[320289305,1711243847163,-544.0,0.00019178,2]
[320289306,1711243847175,-401.95079046,0.00019178,2]
[320289307,1711243854975,168.0,0.00025508,120]
[320289310,1711244093606,41502.95632487,0.00015,2]
[320289312,1711244242612,174.0,0.0002551,120]
[320289351,1711245032124,-643.73756519,0.00015765,2]
[320289352,1711245032134,-244.17,0.00015766,2]
[320289353,1711245032143,-171.34790786,0.00017506,2]
[320289354,1711245032152,-186.82210907,0.0001757,5]
[320289355,1711245032195,-936.75035845,0.0001757,5]
[320289356,1711245032207,-376.11040968,0.0001757,5]
[320289357,1711245032219,-5684.00075518,0.0001757,5]
[320289358,1711245032228,-2501.11,0.00017571,2]
[320289359,1711245032238,-20021.78237608,0.00017593,2]
[320289360,1711245032258,-2611.88104424,0.00017593,2]
[320289361,1711245032296,-253.92241788,0.00017593,2]
[320289362,1711245032310,-1012.4141618,0.00017593,2]
[320289363,1711245032321,-525.55,0.00017603,2]
[320289364,1711245032331,-344.07,0.00017606,2]
[320289365,1711245032341,-500.0,0.00017617,2]
[320289366,1711245032350,-150.0,0.00017618,2]
[320289367,1711245032360,-3163.82,0.00017619,2]
[320289368,1711245032369,-150.99,0.00017619,2]
[320289369,1711245032378,-199.4349,0.00017628,2]
[320289370,1711245032388,-193.99209263,0.00017633,2]
[320289371,1711245032400,-74.62790737,0.00017633,2]
[320289372,1711245032410,-159.17,0.00017639,2]
[320289373,1711245032419,-1074.41,0.00017654,2]
[320289374,1711245032429,-250.0,0.0001767,2]
[320289375,1711245032438,-6570.61,0.0001768,2]
[320289376,1711245032448,-250.0,0.00017681,2]
[320289377,1711245032457,-203.47,0.00017689,2]
[320289378,1711245032467,-474.45,0.00017776,2]
[320289379,1711245032476,-3641.004,0.00017892,2]
[320289380,1711245032486,-2381.265822,0.00018,2]
[320289381,1711245032495,-244.17,0.0001803,2]
[320289382,1711245032504,-175.02,0.00018153,2]
[320289383,1711245032514,-719.67,0.00018174,2]
[320289384,1711245032523,-718.31,0.00018174,2]
[320289385,1711245032532,-719.67,0.00018193,2]
[320289386,1711245032544,-900.14,0.00018212,2]
[320289387,1711245032554,-150.99,0.00018212,2]
[320289388,1711245032563,-719.67,0.00018212,2]
[320289389,1711245032575,-719.67,0.00018231,2]
[320289390,1711245032585,-719.67,0.0001825,2]
[320289391,1711245032594,-719.67,0.00018269,2]
[320289393,1711245032604,-719.67,0.00018288,2]
[320289395,1711245032613,-719.67,0.00018308,2]
[320289397,1711245032622,-719.67,0.00018327,2]
[320289399,1711245032632,-719.67,0.00018346,2]
[320289401,1711245032640,-719.67,0.00018365,2]
[320289403,1711245032649,-719.67,0.00018384,2]
[320289405,1711245032658,-171.34790786,0.00018394,2]
[320289407,1711245032668,-1004.06554556,0.00018402,2]
[320289409,1711245032677,-719.67,0.00018403,2]
[320289410,1711245032685,-719.67,0.00018422,2]
[320289411,1711245032695,-719.67,0.00018441,2]
[320289412,1711245032704,-719.67,0.00018461,2]
[320289413,1711245032713,-3968.68278016,0.00018463,2]
[320289414,1711245032723,-16534.3587,0.00018464,2]
[320289415,1711245032732,-719.67,0.0001848,2]
[320289416,1711245032741,-719.67,0.00018499,2]
[320289417,1711245032751,-1500.0,0.000185,2]
[320289418,1711245032759,-719.67,0.00018518,2]
[320289419,1711245032769,-3666.614,0.00018527,2]
[320289420,1711245032778,-719.67,0.00018537,2]
[320289421,1711245032787,-203.85,0.00018547,2]
[320289422,1711245032797,-1000.0,0.0001879,2]
[320289423,1711245032806,-200.0,0.00018946,2]
[320289424,1711245032815,-800.0,0.00018946,2]
[320289425,1711245032824,-200.0,0.00018946,2]
[320289426,1711245032833,-500.0,0.00018946,2]
[320289427,1711245032842,-800.0,0.00018959,2]
[320289428,1711245032852,-1141.54169239,0.00018961,2]
[320289429,1711245032861,-200.0,0.00018966,2]
[320289430,1711245032870,-800.0,0.00018972,2]
[320289431,1711245032879,-200.0,0.00018972,2]
[320289432,1711245032888,-200.0,0.00018985,2]
[320289433,1711245032897,-800.0,0.00018985,2]
[320289434,1711245032906,-200.0,0.00018985,2]
[320289435,1711245032915,-500.0,0.00018985,2]
[320289436,1711245032926,-200.0,0.00018985,2]
[320289437,1711245032936,-160.92554567,0.00018986,2]
[320289438,1711245032945,-800.0,0.00018998,2]
[320289439,1711245032954,-1500.0,0.00019,2]
[320289440,1711245032963,-200.0,0.00019005,2]
[320289441,1711245032972,-800.0,0.00019011,2]
[320289442,1711245032982,-200.0,0.00019024,2]
[320289443,1711245032991,-800.0,0.00019024,2]
[320289444,1711245033000,-200.0,0.00019024,2]
[320289445,1711245033009,-500.0,0.00019024,2]
[320289446,1711245033018,-200.0,0.00019024,2]
[320289447,1711245033028,-479.0,0.000191,2]
[320289448,1711245033037,-346.28661302,0.00019121,2]
[320289449,1711245033049,-151.032411,0.00019148,2]
[320289450,1711245033060,-205.51417289,0.00019177,2]
[320289451,1711245033069,-5008.75142261,0.00019177,2]
[320289452,1711245033079,-157.0,0.00019178,2]
[320289453,1711245033088,-2535.99436,0.00019178,2]
[320289454,1711245033097,-3660.848,0.00019178,2]
[320289455,1711245033106,-171.34790786,0.00019283,2]
[320289456,1711245033115,-199.19122614,0.00019348,2]
[320289457,1711245033124,-529.48653655,0.00019349,2]
[320289458,1711245033134,-258.79490468,0.00019349,2]
[320289459,1711245033143,-294.5512789,0.00019349,2]
[320289460,1711245033152,-2737.4244,0.00019349,2]
[320289461,1711245033161,-1000.0,0.00019349,2]
[320289462,1711245033170,-1277.2842,0.00019351,2]
[320289463,1711245033180,-466.3154,0.00019351,2]
[320289464,1711245033190,-298.3562,0.00019351,2]
[320289465,1711245033199,-165.7971,0.00019351,2]
[320289466,1711245033208,-500.0,0.00019351,2]
[320289467,1711245033218,-627.879,0.00019351,2]
[320289468,1711245033227,-1000.0,0.00019351,2]
[320289469,1711245033236,-2055.8827,0.00019351,2]
[320289470,1711245033245,-210.0,0.0001938,2]
[320289471,1711245033254,-425.4394615,0.00019439,2]
[320289472,1711245033264,-1772.01333693,0.00019447,2]
[320289473,1711245033273,-332.27921629,0.00019448,2]
[320289474,1711245033283,-155.44490916,0.00019448,2]
[320289475,1711245033292,-151.032411,0.00019448,2]
[320289476,1711245033301,-469.42162563,0.00019449,2]
[320289477,1711245033310,-155.48998847,0.00019449,2]
[320289478,1711245033319,-22861.60016303,0.00019449,2]
[320289479,1711245033331,-681.37934809,0.00019449,2]
[320289480,1711245033340,-199.27091221,0.00019449,2]
[320289481,1711245033349,-549.77207515,0.00019449,2]
[320289482,1711245033358,-415.71928077,0.00019449,2]
[320289483,1711245033368,-6140.60316589,0.00019449,2]
[320289484,1711245033377,-303.46024952,0.00019449,2]
[320289485,1711245033386,-1064.56823036,0.00019449,2]
[320289486,1711245033395,-3622.815851,0.00019449,2]
[320289487,1711245033404,-155.26574716,0.00019449,2]
[320289488,1711245033414,-2981.96483116,0.00019449,2]
[320289489,1711245033423,-174.15534869,0.00019449,2]
[320289490,1711245033433,-262.73843385,0.00019449,2]
[320289491,1711245033444,-185.74322804,0.00019449,2]
[320289492,1711245033456,-13893.83132874,0.00019449,2]
[320289493,1711245033465,-259.11153728,0.00019449,2]
[320289494,1711245033474,-236.71965603,0.00019449,2]
[320289495,1711245033484,-1056.49097952,0.00019449,2]
[320289496,1711245033492,-155.1418352,0.00019449,2]
[320289497,1711245033501,-2170.43686219,0.00019449,2]
[320289498,1711245033511,-155.62173091,0.00019449,2]
[320289499,1711245033520,-186.48346698,0.00019449,2]
[320289500,1711245033529,-1486.72332599,0.0001945,2]
[320289501,1711245033538,-500.0,0.00019451,2]
[320289502,1711245033549,-500.98821284,0.00019451,2]
[320289503,1711245033560,-501.55610615,0.00019451,2]
[320289504,1711245033569,-500.49537365,0.00019451,2]
[320289505,1711245033579,-506.42920967,0.00019451,2]
[320289506,1711245033589,-504.11338529,0.00019451,2]
[320289507,1711245033600,-500.57159724,0.00019451,2]
[320289508,1711245033609,-1500.0,0.000195,2]
[320289509,1711245033619,-1141.5416924,0.00019509,2]
[320289510,1711245033632,-378.50109921,0.00019552,2]
[320289511,1711245033643,-627.33021157,0.00019552,2]
[320289512,1711245033653,-54073.08213994,0.00019553,2]
[320289513,1711245033662,-519.89425092,0.00019623,2]
[320289514,1711245033672,-7500.0,0.00019624,2]
[320289515,1711245033682,-155.0,0.000197,2]
[320289516,1711245033691,-518.13449026,0.00019723,2]
[320289517,1711245033702,-500.0,0.00019723,2]
[320289518,1711245033713,-500.0,0.00019723,2]
[320289519,1711245033723,-500.0,0.00019723,2]
[320289520,1711245033733,-500.0,0.00019723,2]
[320289521,1711245033742,-510.0613426,0.00019723,2]
[320289522,1711245033752,-500.0,0.00019723,2]
[320289523,1711245033761,-500.0,0.00019723,2]
[320289524,1711245033770,-520.52352498,0.00019723,2]
[320289525,1711245033780,-500.0,0.00019723,2]
[320289526,1711245033790,-500.0,0.00019723,2]
[320289527,1711245033798,-500.0,0.00019723,2]
[320289528,1711245033807,-500.0,0.00019723,2]
[320289529,1711245033817,-500.0,0.00019723,2]
[320289530,1711245033828,-500.0,0.00019723,2]
[320289531,1711245033837,-515.78772109,0.00019723,2]
[320289532,1711245033846,-500.0,0.00019723,2]
[320289533,1711245033855,-500.0,0.00019723,2]
[320289534,1711245033865,-500.0,0.00019723,2]
[320289535,1711245033873,-500.0,0.00019723,2]
[320289536,1711245033883,-500.0,0.00019723,2]
[320289537,1711245033892,-500.0,0.00019723,2]
[320289538,1711245033901,-500.0,0.00019723,2]
[320289539,1711245033910,-500.0,0.00019723,2]
[320289540,1711245033919,-500.0,0.00019723,2]
[320289541,1711245033929,-500.0,0.00019723,2]
[320289542,1711245033938,-500.0,0.00019723,2]
[320289543,1711245033947,-500.0,0.00019723,2]
[320289544,1711245033956,-500.0,0.00019723,2]
[320289545,1711245033966,-527.7985505,0.00019723,2]
[320289546,1711245033975,-500.0,0.00019723,2]
[320289547,1711245033984,-500.0,0.00019723,2]
[320289548,1711245033993,-500.0,0.00019723,2]
[320289549,1711245034003,-500.0,0.00019723,2]
[320289550,1711245034013,-509.85005603,0.00019723,2]
[320289551,1711245034023,-500.0,0.00019723,2]
[320289552,1711245034034,-500.0,0.00019723,2]
[320289553,1711245034043,-500.0,0.00019723,2]
[320289554,1711245034054,-500.0,0.00019723,2]
[320289555,1711245034064,-500.0,0.00019723,2]
[320289556,1711245034074,-500.0,0.00019723,2]
[320289557,1711245034083,-500.0,0.00019723,2]
[320289558,1711245034093,-500.0,0.00019723,2]
[320289559,1711245034102,-500.0,0.00019723,2]
[320289560,1711245034111,-500.0,0.00019723,2]
[320289561,1711245034120,-500.0,0.00019723,2]
[320289562,1711245034129,-500.0,0.00019723,2]
[320289563,1711245034140,-500.0,0.00019723,2]
[320289564,1711245034148,-150.0,0.00019723,2]
[320289565,1711245034159,-500.0,0.00019723,2]
[320289566,1711245034169,-500.0,0.00019723,2]
[320289567,1711245034179,-500.0,0.00019723,2]
[320289568,1711245034188,-520.67658116,0.00019723,2]
[320289569,1711245034197,-500.0,0.00019723,2]
[320289570,1711245034207,-500.0,0.00019723,2]
[320289571,1711245034216,-500.0,0.00019723,2]
[320289572,1711245034225,-500.0,0.00019723,2]
[320289573,1711245034235,-526.31842109,0.00019723,2]
[320289574,1711245034244,-500.0,0.00019723,2]
[320289575,1711245034254,-506.35864544,0.00019723,2]
[320289576,1711245034264,-523.26116739,0.00019723,2]
[320289577,1711245034273,-500.0,0.00019723,2]
[320289578,1711245034282,-500.0,0.00019723,2]
[320289579,1711245034291,-512.94355405,0.00019723,2]
[320289580,1711245034300,-500.0,0.00019723,2]
[320289581,1711245034310,-500.0,0.00019723,2]
[320289582,1711245034319,-500.0,0.00019723,2]
[320289583,1711245034329,-500.0,0.00019723,2]
[320289584,1711245034339,-595.02395407,0.00019723,2]
[320289585,1711245034349,-509.5927914,0.00019723,2]
[320289586,1711245034358,-500.0,0.00019723,2]
[320289587,1711245034367,-500.0,0.00019723,2]
[320289588,1711245034377,-500.0,0.00019723,2]
[320289589,1711245034387,-500.0,0.00019723,2]
[320289590,1711245034396,-500.0,0.00019723,2]
[320289591,1711245034405,-506.23522131,0.00019723,2]
[320289592,1711245034415,-500.00460114,0.00019723,2]
[320289593,1711245034425,-510.01591622,0.00019723,2]
[320289594,1711245034434,-597.03550991,0.00019723,2]
[320289595,1711245034443,-500.0,0.00019723,2]
[320289596,1711245034452,-500.0,0.00019723,2]
[320289597,1711245034461,-500.0,0.00019723,2]
[320289598,1711245034471,-580.67676531,0.00019723,2]
[320289599,1711245034480,-500.0,0.00019723,2]
[320289600,1711245034489,-503.44188137,0.00019723,2]
[320289601,1711245034498,-500.0,0.00019723,2]
[320289602,1711245034507,-500.0,0.00019723,2]
[320289603,1711245034516,-500.0,0.00019723,2]
[320289604,1711245034525,-510.03515669,0.00019723,2]
[320289605,1711245034534,-504.62806473,0.00019723,2]
[320289606,1711245034545,-500.0,0.00019723,2]
[320289607,1711245034557,-500.0,0.00019723,2]
[320289608,1711245034566,-502.72509534,0.00019723,2]
[320289609,1711245034576,-500.0,0.00019723,2]
[320289610,1711245034585,-500.0,0.00019723,2]
[320289611,1711245034595,-510.35689757,0.00019723,2]
[320289612,1711245034604,-373.27,0.00019723,2]
[320289613,1711245034614,-500.0,0.00019723,2]
[320289614,1711245034625,-500.0,0.00019723,2]
[320289615,1711245034637,-268.31996913,0.00019723,2]
[320289616,1711245034648,-500.0,0.00019723,2]